[Event "II Duchamp Open 2018"]
[Site "Rio de Janeiro"]
[Date "2018.11.19"]
[Round "7"]
[White "Nascimento, Pedro Henrique Alve"]
[Black "Brito, Vicente De Paulo Al"]
[Result "1/2-1/2"]
[ECO "E92"]
[WhiteElo "2007"]
[BlackElo "2044"]
[Annotator "NA RC"]
[PlyCount "92"]
[EventDate "2018.11.14"]
[EventType "swiss"]
[EventCountry "BRA"]
[SourceTitle "playchess.com"]
[Source "ChessBase"]
[SourceQuality "1"]
[TimeControl "5400+30"]

{[%evp 23,91,16,32767,32767,32767,32767,32767,32767,54,32767,32767,32767,18,6,48,35,32767,32767,79,66,156,148,158,45,97,50,53,13,31,0,36,32767,32767,32767,32767,-53,-51,-189,-267,-240,-216,-221,32767,32767,32767,32767,-214,-195,32767,32767,32767,32767,-470,-535,-137,32767,32767,32767,32767,-23,-8,-84,0,0,0,0,-5,0,0,0]} 1. d4 {[%emt 0:00:00]} Nf6 {[%emt 0:00:00]} 2. c4 {[%emt 0:00:00]} g6 {[%emt 0:00:00]} 3. Nc3 {[%emt 0:00:00]} Bg7 {[%emt 0:00:00]} 4. e4 {[%emt 0:00:00]} d6 {[%emt 0:00:00]} 5. Be2 {[%emt 0:00:00]} O-O {[%emt 0:00:24]} 6. Nf3 {[%emt 0:00:11]} e5 {[%emt 0:00:56]} 7. d5 {[%emt 0:00:10]} a5 {[%emt 0:00:06]} 8. Bg5 {[%emt 0:00:14]} h6 {[%emt 0:00:08]} 9. Bh4 {[%emt 0:00:07]} Na6 {[%emt 0:00:32]} 10. Nd2 {[%emt 0:00:12]} Qe8 {[%emt 0:01:18]} 11. O-O {[%emt 0:00:24]} Bd7 {[%emt 0:02:29]} 12. b3 {[%emt 0:03:43]} Nh7 {[%emt 0:00:47] E92: King's Indian: Classical: 6 Be2 e5: 7 dxe5, 7 Be3 and Petrosian System without 7...Nbd7} 13. f3 {[%emt 0:00:13]} h5 {[%emt 0:00:27]} 14. Rb1 {[%emt 0:00:27]} (14. a3 Bh6 15. Rb1 Nc5 16. Qc2 f5 17. b4 axb4 18. axb4 Na4 19. Nd1 g5 20. Bf2 g4 21. fxg4 Bxd2 22. Qxd2 f4 23. gxh5 Ng5 {1-0 (75) Giri,A (2784)-Ding,L (2732) Wijk aan Zee 2015}) 14... Bh6 {[%emt 0:00:30]} 15. Kh1 {[%emt 0:00:10]} Kh8 {[%emt 0:06:35]} 16. a3 {[%emt 0:00:51]} Be3 {[%emt 0:05:04]} 17. Bf2 $146 {[%emt 0:01:02]} ({Predecessor:} 17. b4 axb4 18. axb4 f6 19. Qc2 Qe7 20. c5 g5 21. Be1 f5 22. c6 bxc6 23. dxc6 Be6 24. Bxa6 Bxd2 25. Bxd2 Rxa6 {1-0 (36) Vinot,S (2441)-Fekete,A (2315) ICCF email 2011}) 17... Bxf2 {[%emt 0:01:21]} 18. Rxf2 {[%emt 0:00:09]} f5 {[%emt 0:14:45]} 19. b4 {[%emt 0:00:44]} axb4 {[%emt 0:00:41]} 20. axb4 {[%emt 0:00:10]} Rd8 {[%emt 0:14:41]} 21. Qc2 {[%emt 0:15:16]} f4 {[%emt 0:02:36] [#]} (21... Qe7 $14) 22. c5 $1 {[%emt 0:00:33]} Nb8 {[%emt 0:07:56]} 23. cxd6 {[%emt 0:01:58]} ({Better is} 23. Rff1 $16) 23... cxd6 {[%emt 0:00:11]} 24. Nc4 {[%emt 0:01:09]} Qe7 {[%emt 0:02:32]} 25. Nb6 {[%emt 0:00:36]} Qh4 {[%emt 0:01:19]} 26. Bb5 {[%emt 0:01:36]} g5 {[%emt 0:01:11]} 27. Bxd7 {[%emt 0:00:37]} Nxd7 {[%emt 0:00:15]} 28. Nxd7 {[%emt 0:00:20]} Rxd7 {[%emt 0:00:09]} 29. Rff1 {[%emt 0:03:08]} g4 {[%emt 0:00:50]} 30. fxg4 {[%emt 0:04:58]} (30. Qf2 $15 Qxf2 31. Rxf2) 30... hxg4 {[%emt 0:01:00]} 31. g3 {[%emt 0:00:18]} fxg3 {[%emt 0:08:13]} 32. Qg2 {[%emt 0:01:25]} Rf3 {[%emt 0:08:14]} 33. Rxf3 {[%emt 0:00:44]} gxf3 {[%emt 0:00:21]} 34. Qxg3 {[%emt 0:00:27]} Qxg3 {[%emt 0:01:02]} 35. hxg3 {[%emt 0:00:01]} Ng5 {[%emt 0:00:44]} 36. Rb2 {[%emt 0:00:50]} Rc7 {[%emt 0:01:41]} 37. Rb3 {[%emt 0:01:54]} Rc4 {[%emt 0:14:16]} 38. Kg1 {[%emt 0:03:07]} f2+ $2 {[%emt 0:02:29]} (38... Kh7 $19 {and Black stays clearly on top.} 39. g4 Kg6) 39. Kf1 {[%emt 0:00:45]} Nxe4 {[%emt 0:00:07]} 40. Nxe4 {[%emt 0:00:24]} Rxe4 {[%emt 0:00:03]} 41. Kxf2 {[%emt 0:00:40]} Rd4 {[%emt 0:00:11]} 42. Ke3 {[%emt 0:00:32]} (42. Rc3 $11 {keeps the balance.}) 42... Rxd5 {[%emt 0:00:12]} (42... Kh7 $17 43. Rc3 Kg6) 43. Ke4 {[%emt 0:00:13]} Rd4+ {[%emt 0:00:41]} 44. Kf5 {[%emt 0:00:13]} Kg7 {[%emt 0:00:28]} 45. b5 {[%emt 0:00:35]} e4 {[%emt 0:03:15]} 46. Rc3 $11 {[%emt 0:03:29]} Rd5+ {[%emt 0:00:25]} 1/2-1/2

[Event "II Duchamp Open 2018"]
[Site "Rio de Janeiro"]
[Date "2018.11.19"]
[Round "7"]
[White "Chaves, Jorge Antonio Torre"]
[Black "Rodrigues, Nei Jorge"]
[Result "1-0"]
[ECO "B00"]
[WhiteElo "1922"]
[BlackElo "1978"]
[Annotator "NA RC"]
[PlyCount "121"]
[EventDate "2018.11.14"]
[EventType "swiss"]
[EventCountry "BRA"]
[SourceTitle "playchess.com"]
[Source "ChessBase"]
[SourceQuality "1"]
[TimeControl "5400+30"]

{[%evp 13,111,-154,32767,32767,32767,32767,32767,-185,-196,32767,-191,32767,-145,-165,-181,-168,32767,-155,32767,-244,32767,-298,-138,-102,-160,-228,-163,-161,-72,-141,-170,-147,32767,32767,32767,32767,32767,32767,32767,32767,-235,32767,-211,-217,-262,-272,-334,-327,-12,-23,-32,-25,-27,-89,32767,32767,32767,-50,-54,32767,-14,32767,32767,32767,-175,-153,-204,-225,32767,32767,32767,32767,-2,0,32767,32767,32767,32767,32767,32767,32767,32767,32767,32767,107,95,166,129,143,32767,116,0,158,32767,32767,186,396,555,514,634]} 1. e4 {[%emt 0:00:00]} d6 {[%emt 0:00:00]} 2. d4 {[%emt 0:00:00]} Nd7 {[%emt 0:00:00]} 3. f4 {[%emt 0:00:21]} e5 {[%emt 0:00:00]} 4. Nf3 {[%emt 0:00:46] B07: Pirc Defence: Miscellaneous Systems} exd4 {[%emt 0:02:11]} (4... Ngf6 5. Nc3 Be7 6. Bc4 Nb6 7. Be2 exd4 8. Nxd4 O-O 9. O-O c6 10. Bf3 c5 11. Nde2 Be6 12. Nd5 Nbxd5 13. exd5 Bd7 {½-½ (24) Horther Schneider,E (1839)-Benischek,W (2122) Bayerisch Eisenstein 2018}) 5. Bc4 {[%emt 0:02:20]} Nb6 {[%emt 0:03:52]} 6. Bb3 {[%emt 0:00:17]} c5 {[%emt 0:04:14]} 7. c4 $2 $146 {[%emt 0:00:55]} ({White should try Predecessor:} 7. c3 $11 c4 8. Ba4+ Nxa4 9. Qxa4+ Bd7 10. Qxc4 dxc3 11. Nxc3 Rc8 {0-1 (65) Gossmann,J (1755)-Sewald,J (1507) Cologne 2009}) 7... g6 {[%emt 0:06:55]} 8. O-O {[%emt 0:02:06]} Bg7 {[%emt 0:00:06]} 9. Nbd2 {[%emt 0:01:50]} Ne7 {[%emt 0:01:58]} 10. Qe1 {[%emt 0:02:10]} O-O {[%emt 0:00:21]} 11. f5 {[%emt 0:16:09]} gxf5 {[%emt 0:01:36]} 12. Nh4 {[%emt 0:01:32]} fxe4 {[%emt 0:07:11]} 13. Nxe4 {[%emt 0:00:21] [#]} Ng6 $1 {[%emt 0:01:12]} 14. Bg5 {[%emt 0:06:12]} f6 {[%emt 0:00:17]} 15. Nxg6 {[%emt 0:05:15]} hxg6 {[%emt 0:00:08]} 16. Qh4 {[%emt 0:02:14]} (16. Bh4 $17 {was worth a try.}) 16... Bf5 {[%emt 0:00:33]} 17. Bc2 {[%emt 0:09:36]} (17. Bd2 $142) 17... Bxe4 {[%emt 0:27:23]} (17... fxg5 $2 18. Nxg5 Qxg5 19. Qxg5 $17) (17... Nxc4 18. g4 $17) (17... Rf7 $19 18. b3 d3 19. Nxf6+ Bxf6 20. Bxf6 Qxf6 21. Qxf6 Rxf6 22. Bxd3 Raf8) 18. Qxe4 {[%emt 0:00:41]} Qe8 {[%emt 0:00:07]} ({Weaker is} 18... fxg5 19. Qxg6 Rf4 20. g3 $18) 19. Qxe8 {[%emt 0:00:33]} (19. Bf4 $17 {was worth a try.}) 19... Raxe8 {[%emt 0:00:46]} 20. Bf4 {[%emt 0:00:16]} Re2 {[%emt 0:01:31]} (20... Re6 $19 21. Rae1 Rxe1 22. Rxe1 Nxc4 23. Bxg6 Ne5) 21. Bd3 {[%emt 0:01:50]} (21. Bxg6 $15 d5 22. cxd5) 21... Rxb2 {[%emt 0:01:25]} 22. Bxd6 {[%emt 0:00:22]} Rc8 {[%emt 0:06:53]} 23. Rf3 {[%emt 0:02:53]} Rc6 {[%emt 0:05:33]} 24. Bf4 {[%emt 0:00:10]} f5 {[%emt 0:01:30]} 25. h4 {[%emt 0:05:15]} Bf6 {[%emt 0:01:26]} 26. Bc1 {[%emt 0:01:55]} Rb4 {[%emt 0:00:32]} 27. h5 {[%emt 0:00:48]} Nxc4 {[%emt 0:01:13]} 28. a3 {[%emt 0:01:21]} Ra4 {[%emt 0:01:44]} 29. Rg3 {[%emt 0:04:13]} Be5 {[%emt 0:04:14]} 30. Rg5 {[%emt 0:00:33]} Ne3 $2 {[%emt 0:02:09]} ({Black should play} 30... Nd6 $19 31. Rxg6+ Kf7) 31. Bb5 {[%emt 0:02:07] [#]} Raa6 $1 {[%emt 0:00:15]} 32. Bxa6 {[%emt 0:01:00]} Rxa6 {[%emt 0:08:07]} 33. Rb1 {[%emt 0:00:17]} (33. Bxe3 $1 $11 {was the only way to keep the balance.} dxe3 34. Rb1) 33... b6 {[%emt 0:03:07]} 34. Rxg6+ {[%emt 0:00:10]} Kf7 {[%emt 0:00:01]} 35. Rc6 {[%emt 0:07:27]} Ra4 {[%emt 0:00:36]} 36. h6 {[%emt 0:00:57]} Rc4 {[%emt 0:03:03]} 37. Bxe3 {[%emt 0:07:09]} dxe3 {[%emt 0:00:09]} 38. h7 {[%emt 0:10:25]} Kg7 {[%emt 0:01:34]} 39. Kf1 {[%emt 0:03:29]} Rc2 {[%emt 0:00:56]} ({Much less strong is} 39... Kxh7 40. Re1 $17) 40. Re1 {[%emt 0:02:54]} Bd4 {[%emt 0:01:08]} 41. Rc7+ {[%emt 0:00:52]} Kh8 {[%emt 0:00:13]} 42. Re2 {[%emt 0:00:15]} Rc1+ {[%emt 0:01:30]} 43. Re1 {[%emt 0:00:06]} Rc4 {[%emt 0:00:38]} 44. Rxa7 {[%emt 0:00:23]} f4 {[%emt 0:00:23]} 45. Rf7 {[%emt 0:00:46]} Bc3 {[%emt 0:00:23]} 46. Rb1 {[%emt 0:00:45]} Ba5 {[%emt 0:00:54]} 47. Rd1 {[%emt 0:00:34]} Bd2 {[%emt 0:01:04]} 48. Rb1 {[%emt 0:00:17]} Ba5 {[%emt 0:02:13]} 49. Rb2 {[%emt 0:00:48]} Rc1+ {[%emt 0:00:38]} (49... Ra4 $16) 50. Ke2 {[%emt 0:00:05]} Re1+ $1 $11 {[%emt 0:00:31]} 51. Kd3 {[%emt 0:00:28]} (51. Kf3 Rf1+ 52. Kg4 Rd1) 51... Rd1+ {[%emt 0:00:34] [#]} 52. Ke2 {[%emt 0:00:27]} (52. Ke4 $1 $16) 52... Rg1 $2 {[%emt 0:00:15]} 53. Kd3 {[%emt 0:00:15]} Rf1 {[%emt 0:00:43]} 54. g4 {[%emt 0:01:07]} Rd1+ $18 {[%emt 0:00:28]} (54... Rh1 {might work better.} 55. a4 (55. Rxf4 Kxh7 56. Kxe3 Kg6 $16) 55... Rxh7 56. Rxf4 Rh3) 55. Ke4 {[%emt 0:00:20]} Rd4+ {[%emt 0:00:36]} 56. Kf3 {[%emt 0:00:48]} c4 {[%emt 0:00:00]} 57. g5 {[%emt 0:00:27]} c3 {[%emt 0:00:36]} 58. Rg2 {[%emt 0:00:17]} Rd3 {[%emt 0:00:52]} 59. Re2 {[%emt 0:00:40]} Rd5 {[%emt 0:00:30]} 60. g6 {[%emt 0:00:17]} Rg5 {[%emt 0:00:18]} 61. Rf8+ {[%emt 0:00:09]} 1-0

[Event "II Duchamp Open 2018"]
[Site "Rio de Janeiro"]
[Date "2018.11.19"]
[Round "8"]
[White "Maia, Jose Eduardo Bastos"]
[Black "Dos Santos, Rodrigo Mello"]
[Result "1-0"]
[ECO "A46"]
[WhiteElo "2093"]
[BlackElo "1965"]
[Annotator "NA RC"]
[PlyCount "97"]
[EventDate "2018.11.14"]
[EventType "swiss"]
[EventCountry "BRA"]
[SourceTitle "playchess.com"]
[Source "ChessBase"]
[SourceQuality "1"]
[TimeControl "5400+30"]

{[%evp 9,97,7,31,-17,-6,5,-4,0,16,-10,-22,-10,-9,-21,-27,-26,-6,-16,-22,-47,-41,-56,-29,-42,-37,-31,-18,-10,0,-1,54,13,19,21,18,0,0,-4,58,27,49,21,52,59,59,78,103,97,223,210,219,107,339,341,462,211,259,207,237,262,274,296,497,420,863,918,1375,1552,1700,811,802,472,1232,508,441,522,554,631,655,650,572,476,29984,29983,29992,29993,29994,29995,29995,29996]} 1. d4 {[%emt 0:00:00]} Nf6 {[%emt 0:00:00]} 2. Nf3 {[%emt 0:00:00]} c5 {[%emt 0:00:05]} 3. c3 {[%emt 0:00:00]} b6 {[%emt 0:01:02]} 4. Bf4 {[%emt 0:00:08]} Bb7 {[%emt 0:01:11]} 5. Nbd2 {[%emt 0:00:22]} g6 {[%emt 0:00:56] LiveBook: 10 Games} 6. Qa4 {[%emt 0:05:33]} Bg7 {[%emt 0:02:08]} 7. dxc5 {[%emt 0:00:48]} bxc5 {[%emt 0:00:58]} 8. e4 {[%emt 0:00:53]} O-O {[%emt 0:01:02]} 9. Be2 {[%emt 0:05:01]} d6 {[%emt 0:10:16]} 10. O-O {[%emt 0:03:19]} Nh5 {[%emt 0:06:09]} 11. Bg5 {[%emt 0:02:01]} h6 {[%emt 0:00:45]} 12. Be3 {[%emt 0:00:19]} Nd7 {[%emt 0:00:54]} 13. Rad1 {[%emt 0:07:12]} Qc7 {[%emt 0:04:05]} 14. Nh4 {[%emt 0:04:33]} Bc6 {[%emt 0:04:19]} 15. Qc2 {[%emt 0:00:34]} Nhf6 {[%emt 0:00:56]} 16. f4 {[%emt 0:10:49]} Qb7 {[%emt 0:03:21]} 17. Bf3 {[%emt 0:12:46]} Rab8 {[%emt 0:05:24]} 18. b3 {[%emt 0:02:08]} a5 {[%emt 0:01:37]} 19. Rfe1 {[%emt 0:01:35]} a4 {[%emt 0:02:05]} 20. Bf2 {[%emt 0:00:59]} axb3 {[%emt 0:00:46]} 21. axb3 {[%emt 0:00:03]} Ne8 {[%emt 0:07:51]} 22. Rb1 {[%emt 0:12:57]} e6 {[%emt 0:13:36]} 23. Nc4 {[%emt 0:08:35]} Qc7 {[%emt 0:01:07]} (23... g5 $15 24. Na5 Qb6) 24. f5 {[%emt 0:14:39]} exf5 $1 {[%emt 0:07:10]} 25. exf5 {[%emt 0:00:17]} g5 {[%emt 0:08:06]} 26. Bxc6 {[%emt 0:00:31]} Qxc6 {[%emt 0:00:15] [#]} 27. f6 $1 {[%emt 0:00:32]} gxh4 {[%emt 0:03:23]} 28. fxg7 {[%emt 0:00:09]} Kxg7 {[%emt 0:00:38]} (28... Nxg7 $16 29. Rbd1 (29. Bxh4 d5 $16) 29... d5) 29. Ne3 {[%emt 0:01:11]} h3 {[%emt 0:03:04] [#]} 30. Bg3 {[%emt 0:01:46]} ({Inferior is} 30. gxh3 Ne5 $11) (30. Qf5 $1 $18 {and White stays clearly on top.}) 30... Rg8 $2 {[%emt 0:02:29]} (30... f5 $16) 31. Qf5 {[%emt 0:01:22]} ({Less strong is} 31. gxh3 Ne5 $14) 31... hxg2 {[%emt 0:03:01]} 32. Nd5 {[%emt 0:00:23]} (32. Qh3 $142 Nef6 33. Nf5+ Kh8 34. Nxh6 Rxg3 35. hxg3) 32... Nef6 {[%emt 0:01:17]} 33. Ne7 {[%emt 0:01:16]} Qb6 {[%emt 0:00:44]} 34. Nxg8 {[%emt 0:00:19]} Rxg8 {[%emt 0:00:09]} 35. c4 {[%emt 0:00:18]} ({Weaker is} 35. Kxg2 Kh8 $16) 35... Ra8 $2 {[%emt 0:00:42]} (35... d5 {was worth a try.} 36. cxd5 Kf8 37. Kxg2 Qb7) 36. Bh4 {[%emt 0:00:52]} Qc6 {[%emt 0:01:51]} 37. Rb2 {[%emt 0:00:24]} Ng8 {[%emt 0:02:26]} 38. Rxg2+ {[%emt 0:00:23]} Kf8 {[%emt 0:00:03]} 39. Rf2 {[%emt 0:01:42]} (39. Qg4 $142 Qxg2+ 40. Qxg2) 39... Ne5 {[%emt 0:00:44]} 40. Bg3 {[%emt 0:01:20]} Ne7 {[%emt 0:00:41]} 41. Qh5 {[%emt 0:00:41]} (41. Qh7 $142 N7g6 42. Bxe5 Nxe5 43. Rf5) 41... N7g6 {[%emt 0:00:57]} 42. Qxh6+ {[%emt 0:00:36]} Kg8 {[%emt 0:00:36]} 43. Bxe5 {[%emt 0:00:29]} dxe5 {[%emt 0:00:33]} 44. h4 {[%emt 0:01:04]} Qd7 {[%emt 0:00:53]} 45. Qg5 {[%emt 0:00:48]} Kf8 {[%emt 0:00:34]} (45... Kh7 $18 46. Rd2 Qh3) 46. Qxg6 {[%emt 0:00:22]} Ra2 {[%emt 0:00:18]} 47. Qh6+ {[%emt 0:00:25]} Kg8 {[%emt 0:00:23]} 48. Rxa2 {[%emt 0:00:25]} Qd4+ {[%emt 0:00:24]} 49. Kh1 {[%emt 0:00:27]} 1-0

[Event "II Duchamp Open 2018"]
[Site "Rio de Janeiro"]
[Date "2018.11.19"]
[Round "8"]
[White "Campos, Alexandre Ferreira"]
[Black "Nascimento, Pedro Henrique Alve"]
[Result "0-1"]
[ECO "A22"]
[WhiteElo "2076"]
[BlackElo "2007"]
[Annotator "NA RC"]
[PlyCount "108"]
[EventDate "2018.11.14"]
[EventType "swiss"]
[EventCountry "BRA"]
[SourceTitle "playchess.com"]
[Source "ChessBase"]
[SourceQuality "1"]
[TimeControl "5400+30"]

{[%evp 8,108,9,23,0,8,8,10,8,-13,-19,-35,-38,-51,-44,-80,-48,-83,-34,-82,-71,-76,-49,-50,-34,-79,-77,-78,-35,-57,-38,-52,-27,-42,-22,-35,-18,-65,-39,-36,-14,-53,11,5,4,-20,0,0,-10,-41,-47,-34,-31,-35,-47,-100,-95,-97,-84,-192,-183,-209,-108,-120,-94,-252,-272,-620,-679,-668,-672,-693,-697,-666,-807,-1083,-962,-788,-724,-682,-832,-717,-918,-797,-970,-816,-1013,-1000,-1171,-1328,-1837,-1602,-1682,-1301,-2596,-2037,-6035,-5122,-29954,-29975,-29968,-29941,-29988]} 1. g3 {[%emt 0:00:00]} e5 {[%emt 0:01:59]} 2. c4 {[%emt 0:00:04]} Nf6 {[%emt 0:00:51]} 3. Nc3 {[%emt 0:00:13]} Bb4 {[%emt 0:00:27]} 4. Bg2 {[%emt 0:00:20]} Bxc3 {[%emt 0:02:47]} 5. bxc3 {[%emt 0:01:51]} O-O {[%emt 0:00:32]} 6. Nf3 {[%emt 0:00:13]} d6 {[%emt 0:00:34]} 7. O-O {[%emt 0:01:17]} Nc6 {[%emt 0:04:38]} 8. d4 {[%emt 0:00:17]} Re8 {[%emt 0:01:29] LiveBook: 4 Games A29: English Opening: Four Knights Variation with 4 g3} 9. Rb1 {[%emt 0:01:46]} h6 {[%emt 0:01:51]} 10. h3 $146 {[%emt 0:03:47]} ({Predecessor:} 10. dxe5 Nxe5 11. Nxe5 Rxe5 12. Bf4 Ra5 13. Qd2 Qe8 14. Bxb7 Bxb7 15. Rxb7 {½-½ (25) Raimbert,R (2426)-Sarakauskas,G (2339) ICCF email 2006}) 10... Rb8 {[%emt 0:04:35]} 11. Be3 {[%emt 0:14:46]} Bf5 {[%emt 0:07:17]} 12. Rb2 {[%emt 0:00:32]} Na5 {[%emt 0:00:47]} 13. Qa4 {[%emt 0:01:19]} b6 $1 {[%emt 0:02:02]} 14. Nd2 {[%emt 0:06:49]} Qd7 {[%emt 0:01:37]} 15. Qxd7 {[%emt 0:00:45]} Bxd7 {[%emt 0:00:31]} 16. Rfb1 Bf5 {[%emt 0:00:40]} 17. Rd1 {[%emt 0:00:59]} Be6 {[%emt 0:00:37]} 18. dxe5 {[%emt 0:00:39]} dxe5 {[%emt 0:00:35]} 19. c5 {[%emt 0:00:05]} Red8 {[%emt 0:00:42]} 20. Rc1 {[%emt 0:10:56]} Nd5 {[%emt 0:05:24]} 21. Bxd5 {[%emt 0:06:12]} Bxd5 {[%emt 0:01:15]} 22. f4 {[%emt 0:04:03]} f6 {[%emt 0:04:20]} 23. c4 {[%emt 0:09:00]} Be6 {[%emt 0:02:59]} 24. g4 {[%emt 0:00:02]} g5 {[%emt 0:04:25]} ({Black should try} 24... exf4 $15 25. Bxf4 Rbc8) 25. fxe5 {[%emt 0:02:18]} fxe5 {[%emt 0:00:16]} 26. Rbc2 {[%emt 0:01:41]} Bf7 {[%emt 0:04:33]} 27. cxb6 {[%emt 0:01:18]} axb6 {[%emt 0:01:41]} 28. c5 {[%emt 0:00:27]} b5 $1 {[%emt 0:00:23]} 29. c6 {[%emt 0:06:01]} Nc4 {[%emt 0:00:36]} 30. Nxc4 {[%emt 0:00:19]} Bxc4 {[%emt 0:00:44]} 31. a4 {[%emt 0:00:30]} (31. Rd2 $15) 31... Bb3 {[%emt 0:01:42] Double Attack} 32. Rc5 {[%emt 0:07:33]} bxa4 {[%emt 0:00:27]} 33. Rxe5 {[%emt 0:03:03] [#]} (33. Ra1 $17) 33... a3 $1 {[%emt 0:08:47]} 34. Re7 a2 {[%emt 0:04:19]} ({Black should play} 34... Re8 $19 35. Rxe8+ Rxe8) 35. Rxc7 {[%emt 0:09:54]} Bd5 {[%emt 0:09:46]} 36. Ra7 {[%emt 0:00:59]} (36. Bd4 $17 Rb1 37. Rf1 Rxf1+ 38. Kxf1 Bxc6 {[%mdl 64] Discovered Attack} 39. Bc3) 36... Rb1 {[%emt 0:01:14]} 37. c7 $2 {[%emt 0:00:19] [#]} (37. Ra5) 37... Rc8 $1 {[%emt 0:00:22]} 38. Kf2 {[%emt 0:02:48]} Rxc1 {[%emt 0:00:54]} 39. Bxc1 {[%emt 0:00:03] [#]} Rxc7 $1 {[%emt 0:00:11] Promotion} 40. Rxc7 {[%emt 0:01:51]} a1=Q {[%emt 0:00:23]} 41. Bd2 {[%emt 0:00:28]} Qf6+ {[%emt 0:00:27]} 42. Ke1 {[%emt 0:00:30]} Qe5 {[%emt 0:00:45]} 43. Rc8+ Kf7 {[%emt 0:00:22]} 44. Rc3 {[%emt 0:00:40]} Qh2 {[%emt 0:01:19]} 45. Kd1 {[%emt 0:01:09]} Qh1+ {[%emt 0:00:24]} 46. Be1 {[%emt 0:00:24]} Bg2 {[%emt 0:00:18]} 47. Rc7+ Ke6 {[%emt 0:01:02]} 48. h4 {[%emt 0:00:33]} gxh4 {[%emt 0:00:34]} 49. Rh7 {[%emt 0:00:01]} h3 {[%emt 0:01:48]} 50. Rxh6+ {[%emt 0:00:04]} Kf7 {[%emt 0:00:45]} 51. Kd2 {[%emt 0:00:19]} Bf1 {[%emt 0:00:38]} 52. g5 {[%emt 0:00:32]} Qd5+ {[%emt 0:00:43]} 53. Kc2 {[%emt 0:00:33]} Qxg5 {[%emt 0:00:35]} 54. Bd2 {[%emt 0:00:01] [#]} Qxh6 {[%emt 0:00:42]} 0-1

[Event "II Duchamp Open 2018"]
[Site "Rio de Janeiro"]
[Date "2018.11.19"]
[Round "8"]
[White "Manzi, Luiz Antonio Bardar"]
[Black "Peixoto, Rudson Marinho"]
[Result "1/2-1/2"]
[ECO "A05"]
[WhiteElo "2047"]
[BlackElo "2007"]
[Annotator "NA RC"]
[PlyCount "97"]
[EventDate "2018.11.14"]
[EventType "swiss"]
[EventCountry "BRA"]
[SourceTitle "playchess.com"]
[Source "ChessBase"]
[SourceQuality "1"]
[TimeControl "5400+30"]

{[%evp 8,97,15,14,23,-9,0,4,0,2,13,32767,32,29,36,45,71,10,20,23,25,33,24,44,54,61,71,73,70,39,45,32,43,30,29,23,21,25,51,23,16,0,2,0,0,0,0,0,0,0,0,0,0,0,32,29,87,8,25,-8,12,8,8,8,23,15,44,21,16,-8,-4,-8,-8,-14,0,-8,-8,-86,-120,-89,0,0,0,0,0,0,0,0,0,0,0,0]} 1. Nf3 {[%emt 0:00:00]} Nf6 {[%emt 0:06:24]} 2. b3 {[%emt 0:00:00]} g6 {[%emt 0:00:09]} 3. Bb2 {[%emt 0:00:00]} Bg7 {[%emt 0:00:07]} 4. e3 {[%emt 0:00:39]} O-O {[%emt 0:00:12]} 5. d4 {[%emt 0:00:53]} d6 {[%emt 0:00:40]} 6. Nbd2 {[%emt 0:02:40]} c5 {[%emt 0:00:12]} 7. Be2 {[%emt 0:01:30]} Nc6 {[%emt 0:00:31]} 8. O-O {[%emt 0:01:41] LiveBook: 5 Games} cxd4 {[%emt 0:00:56] A48: 1 d4 Nf6 2 Nf3 g6: Torre, London and Colle Systems} (8... Bf5 9. c4 cxd4 10. Nxd4 Bd7 11. Bf3 Qb6 12. a3 Ne5 13. Be2 Rfc8 14. Rc1 Be8 15. h3 a6 16. Rc2 Ned7 17. Qb1 e5 18. N4f3 a5 19. Ba1 Nc5 20. b4 axb4 21. axb4 Ne6 22. Rfc1 Qa7 23. c5 {½-½ (23) Ivanov,S (2322)-Kulaots,K (2570) Finland 2016}) 9. exd4 {[%emt 0:00:33]} Nh5 $146 {[%emt 0:00:57]} ({Predecessor:} 9... Bd7 10. Re1 Rc8 11. Bf1 Re8 12. Nc4 Qc7 {½-½ (20) Ernst,M (2141)-Olsson,L (1930) Hersonissos 2017}) 10. Re1 {[%emt 0:03:42]} e5 {[%emt 0:01:09]} 11. dxe5 {[%emt 0:03:23]} dxe5 {[%emt 0:00:11]} 12. Nc4 {[%emt 0:01:17]} e4 {[%emt 0:02:44]} 13. Qxd8 {[%emt 0:02:44]} Rxd8 {[%emt 0:00:45]} 14. Ng5 {[%emt 0:01:46]} Bxb2 {[%emt 0:00:31]} 15. Nxb2 {[%emt 0:00:08]} f5 {[%emt 0:02:57]} 16. Bxh5 {[%emt 0:04:27]} gxh5 {[%emt 0:00:10]} 17. Red1 {[%emt 0:01:06]} h6 {[%emt 0:00:06]} 18. Nh3 {[%emt 0:01:00]} Be6 {[%emt 0:00:10]} 19. Nf4 {[%emt 0:00:28]} Bf7 {[%emt 0:00:09]} 20. c4 {[%emt 0:02:47]} Rac8 {[%emt 0:05:13]} 21. Rxd8+ {[%emt 0:01:59]} Rxd8 {[%emt 0:00:27]} 22. Rd1 {[%emt 0:00:57]} Rxd1+ {[%emt 0:02:24]} 23. Nxd1 {[%emt 0:00:07]} Kg7 {[%emt 0:00:09]} 24. Kf1 {[%emt 0:01:47]} Kf6 {[%emt 0:00:27]} 25. Ke2 {[%emt 0:01:40]} Ke5 {[%emt 0:00:24]} 26. g3 {[%emt 0:01:31]} h4 {[%emt 0:00:11]} 27. Ke3 {[%emt 0:02:10]} hxg3 {[%emt 0:00:25]} 28. hxg3 {[%emt 0:00:09]} Nb4 {[%emt 0:00:11]} 29. Nc3 {[%emt 0:01:22]} h5 {[%emt 0:01:50]} 30. Nfe2 {[%emt 0:04:06]} h4 {[%emt 0:00:39]} 31. gxh4 {[%emt 0:01:21]} Bh5 {[%emt 0:02:02] [#]} 32. a4 {[%emt 0:09:28]} (32. Nd5 $1 $16 {[%cal Rd5b4]} Nc2+ 33. Kd2 Bxe2 34. Kxe2 (34. Kxc2 f4 $14)) 32... a6 {[%emt 0:00:40]} 33. a5 {[%emt 0:12:49]} (33. Nd5 $5 {[%cal Rd5b4]} Nc2+ 34. Kd2 Bxe2 35. Kxc2 $14 (35. Kxe2 Nd4+ 36. Kd1 Nxb3 $11)) 33... Nc6 {[%emt 0:00:55]} 34. Nf4 {[%emt 0:00:08]} Bf7 {[%emt 0:02:00]} 35. h5 {[%emt 0:03:11]} Nxa5 {[%emt 0:03:46]} 36. h6 {[%emt 0:00:08]} Bg8 {[%emt 0:00:57]} 37. Ncd5 {[%emt 0:00:15]} Bh7 {[%emt 0:01:33]} 38. Nh5 {[%emt 0:00:39]} Nxb3 {[%emt 0:01:02]} 39. Nhf6 {[%emt 0:00:37]} f4+ $1 {[%emt 0:00:33]} 40. Ke2 {[%emt 0:00:15]} Nd4+ {[%emt 0:00:49]} 41. Kf1 {[%emt 0:00:55]} Bf5 {[%emt 0:01:40] [#]} 42. h7 {[%emt 0:00:17] [#]} (42. Ng4+ $1 $11 {[%mdl 512] keeps the balance.} Ke6 (42... Bxg4 43. h7) 43. Nxf4+ Kf7 44. Ne3) 42... Bxh7 $1 {[%emt 0:00:21]} 43. Nxh7 {[%emt 0:00:06] [#]} b5 {[%emt 0:00:06]} (43... Ne6 $1 $17 44. Nhf6 Kd4) 44. cxb5 {[%emt 0:01:41]} axb5 {[%emt 0:00:30]} 45. Nb4 {[%emt 0:01:06]} Ne6 {[%emt 0:00:21]} 46. Ke2 {[%emt 0:00:30]} Kd6 {[%emt 0:00:20]} 47. Nf6 {[%emt 0:00:19]} Kc5 {[%emt 0:00:56]} 48. Nc2 {[%emt 0:00:26]} Nd4+ {[%emt 0:00:43]} 49. Kd2 $11 {[%emt 0:01:31]} 1/2-1/2